bitfinex/quotes_BTCUSD_20240810
["timestamp","ask_amount","ask_price","bid_price","bid_amount"]
[1723256726866,1.07724455,60752.0,60751.0,0.01802264]
[1723256727050,1.07724455,60752.0,60751.0,0.0059141]
[1723256728417,0.823848,60752.0,60751.0,0.0059141]
[1723256728623,1.07672243,60752.0,60751.0,0.0059141]
[1723256729328,1.24223978,60752.0,60751.0,0.0059141]
[1723256729731,1.24223978,60752.0,60751.0,0.0009141]
[1723256730051,1.24423978,60752.0,60751.0,0.0009141]
[1723256730259,1.07872243,60752.0,60751.0,0.0009141]
[1723256730592,1.07672243,60752.0,60751.0,0.0009141]
[1723256730927,1.07872243,60752.0,60751.0,0.0009141]
[1723256731127,1.08072243,60752.0,60751.0,0.0009141]
[1723256731268,0.61482995,60752.0,60751.0,0.0009141]
[1723256731470,0.61482995,60752.0,60751.0,0.47313502]
[1723256731471,0.11901995,60752.0,60751.0,0.47313502]
[1723256731679,0.12101995,60752.0,60751.0,0.47313502]
[1723256731881,0.004831,60752.0,60751.0,1.14367333]
[1723256732088,0.004831,60752.0,60751.0,1.19283163]
[1723256732280,0.004831,60752.0,60751.0,1.64712752]
[1723256732486,0.004831,60752.0,60751.0,1.64902376]
[1723256732487,0.002831,60752.0,60751.0,1.64902376]
[1723256732693,0.002831,60752.0,60751.0,1.56082937]
[1723256732907,0.001831,60752.0,60751.0,1.67102297]
[1723256733064,0.002831,60752.0,60751.0,1.67702297]
[1723256733285,0.002831,60752.0,60751.0,1.57881664]
[1723256733494,0.002831,60752.0,60751.0,1.6524518]
[1723256733682,0.001831,60752.0,60751.0,1.6464518]
[1723256733903,0.001831,60752.0,60751.0,1.6604518]
[1723256734106,0.001831,60752.0,60751.0,1.6464518]
[1723256734471,0.002831,60752.0,60751.0,1.63589118]
[1723256734677,0.001831,60752.0,60751.0,1.62189118]
[1723256734942,0.000831,60752.0,60751.0,1.60789396]
[1723256735386,0.001831,60752.0,60751.0,1.62189396]
[1723256735514,0.000831,60752.0,60751.0,1.60789396]
[1723256735713,0.000831,60752.0,60751.0,1.63243262]
[1723256735934,0.001831,60752.0,60751.0,1.29267043]
[1723256736169,0.001831,60752.0,60751.0,1.17769178]
[1723256736980,0.001831,60752.0,60751.0,1.15767333]
[1723256737177,0.001831,60752.0,60751.0,1.14367333]
[1723256737380,0.001831,60752.0,60751.0,1.15767333]
[1723256737682,0.002831,60752.0,60751.0,0.84246133]
[1723256737834,0.000831,60752.0,60751.0,0.81446133]
[1723256738018,0.000831,60752.0,60751.0,0.82846133]
[1723256738019,0.001831,60752.0,60751.0,0.82846133]
[1723256738245,0.002831,60752.0,60751.0,0.84246133]
[1723256738524,0.000831,60752.0,60751.0,0.81446133]
[1723256738723,0.001831,60752.0,60751.0,0.82846133]
[1723256738936,0.002831,60752.0,60751.0,0.84246133]
[1723256739300,0.001831,60752.0,60751.0,0.82846133]
[1723256740237,0.000831,60752.0,60751.0,0.81446133]
[1723256740698,0.001831,60752.0,60751.0,0.82846133]
[1723256741467,0.000831,60752.0,60751.0,0.81446133]
[1723256741658,0.001831,60752.0,60751.0,0.82846133]
[1723256741865,0.002831,60752.0,60751.0,0.84246133]
[1723256742087,0.001831,60752.0,60751.0,0.82846133]
[1723256742333,0.000831,60752.0,60751.0,0.81446133]
[1723256742485,0.001831,60752.0,60751.0,0.82846133]
[1723256743568,0.002831,60752.0,60751.0,0.84246133]
[1723256743767,0.001831,60752.0,60751.0,0.82846133]
[1723256744105,0.002831,60752.0,60751.0,0.84146133]
[1723256744327,0.001831,60752.0,60751.0,0.82846133]
[1723256744875,0.000831,60752.0,60751.0,0.81446133]
[1723256745108,0.001831,60752.0,60751.0,1.15767333]
[1723256745273,0.002831,60752.0,60751.0,1.17167333]
[1723256745473,0.000831,60752.0,60751.0,0.81446133]
[1723256746044,0.000831,60752.0,60751.0,1.14367333]
[1723256746218,0.000831,60752.0,60751.0,0.81446133]
[1723256746602,0.000831,60752.0,60751.0,1.14367333]
[1723256746971,0.001831,60752.0,60751.0,1.15767333]
[1723256747215,0.001831,60752.0,60751.0,0.82846133]
[1723256747638,0.002831,60752.0,60751.0,0.84246133]
[1723256748022,0.002831,60752.0,60751.0,1.17167333]
[1723256749972,0.002831,60752.0,60751.0,1.50088533]
[1723256750200,0.002831,60752.0,60751.0,1.72624876]
[1723256750390,0.002831,60752.0,60751.0,1.74077836]
[1723256750595,0.002831,60752.0,60751.0,1.75295991]
[1723256750798,0.002831,60752.0,60751.0,1.75095991]
[1723256751337,0.002831,60752.0,60751.0,1.74095991]
[1723256751539,0.002831,60752.0,60751.0,1.75095991]
[1723256752266,0.002831,60752.0,60751.0,2.12670151]
[1723256752445,0.002831,60752.0,60751.0,2.12660975]
[1723256752649,0.002831,60752.0,60751.0,2.12923111]
[1723256752990,0.002831,60752.0,60751.0,2.45539432]
[1723256753199,0.002831,60752.0,60751.0,2.47539432]
[1723256753373,0.002831,60752.0,60751.0,2.42089562]
[1723256753569,0.002831,60752.0,60751.0,2.43089562]
[1723256753751,0.002831,60752.0,60751.0,2.54329562]
[1723256753968,0.002831,60752.0,60751.0,2.45229821]
[1723256754181,0.002831,60752.0,60751.0,2.54342847]
[1723256754375,0.002831,60752.0,60751.0,2.47190396]
[1723256754713,0.002831,60752.0,60751.0,2.51891791]
[1723256755012,0.002831,60752.0,60751.0,2.47190396]
[1723256755553,0.002831,60752.0,60751.0,2.47177186]
[1723256756154,0.002831,60752.0,60751.0,2.52078581]
[1723256756372,0.002831,60752.0,60751.0,2.47177186]
[1723256756788,0.002831,60752.0,60751.0,1.79177186]
[1723256757061,0.002831,60752.0,60751.0,1.78977186]
[1723256758490,0.002831,60752.0,60751.0,1.79177186]
[1723256759689,0.002831,60752.0,60751.0,1.77977186]
[1723256760013,0.002831,60752.0,60751.0,0.20484333]
[1723256760274,0.002831,60752.0,60751.0,0.36944933]
[1723256760275,0.11631376,60752.0,60751.0,0.36944933]
[1723256760444,0.002831,60752.0,60751.0,1.03787333]
[1723256760664,0.002831,60752.0,60751.0,1.29517333]
[1723256761208,0.002831,60752.0,60751.0,1.28517333]
[1723256762428,0.002831,60752.0,60751.0,1.29535376]
[1723256762884,0.002831,60752.0,60751.0,1.3720399]
[1723256763387,0.002831,60752.0,60751.0,1.30535376]
[1723256763567,0.002831,60752.0,60751.0,1.37203881]
[1723256763967,0.002831,60752.0,60751.0,1.3720768]
[1723256765953,0.002831,60752.0,60751.0,0.36944933]
[1723256766990,0.002831,60752.0,60751.0,0.69866133]
[1723256769440,0.002831,60752.0,60751.0,0.20484333]
[1723256769639,0.167434,60752.0,60751.0,0.04102841]
[1723256769857,0.28890039,60752.0,60751.0,0.04102841]
[1723256770388,0.28938549,60752.0,60751.0,0.04102841]
[1723256770793,0.12478249,60752.0,60751.0,0.04102841]
[1723256771410,0.28938549,60752.0,60751.0,0.04102841]
[1723256772088,0.28460486,60752.0,60751.0,0.04102841]
[1723256773457,1.08381886,60752.0,60751.0,0.04102841]
[1723256773667,1.08381886,60752.0,60751.0,0.0289141]
[1723256774001,1.54971032,60752.0,60751.0,0.0289141]
[1723256774198,1.5441194,60752.0,60751.0,0.0289141]
[1723256774357,1.5441194,60752.0,60751.0,0.0149141]
[1723256774358,1.5431194,60752.0,60751.0,0.0149141]
[1723256774763,1.54295447,60752.0,60751.0,0.0099141]
[1723256775022,1.54395447,60752.0,60751.0,0.0099141]
[1723256775811,1.54295447,60752.0,60751.0,0.0099141]
[1723256776288,1.54195447,60752.0,60751.0,0.0009141]
[1723256776415,1.40926549,60752.0,60751.0,0.0009141]
[1723256777219,1.41326549,60752.0,60751.0,0.0009141]
[1723256777432,1.301855,60752.0,60751.0,0.0009141]
[1723256777788,1.41298359,60752.0,60751.0,0.0009141]
[1723256781154,1.301855,60752.0,60751.0,0.0009141]
[1723256781382,1.41355629,60752.0,60751.0,0.0009141]
[1723256783965,1.87945789,60752.0,60751.0,0.0009141]
[1723256784224,2.3289029,60752.0,60751.0,0.0009141]
[1723256784492,2.3389029,60752.0,60751.0,0.0009141]
[1723256784971,1.92787692,60752.0,60751.0,0.0009141]
[1723256785168,2.32551698,60752.0,60751.0,0.0009141]
[1723256785368,2.3358327,60752.0,60751.0,0.0019141]
[1723256785606,2.3458327,60752.0,60751.0,0.0019141]
[1723256785813,2.3358327,60752.0,60751.0,0.0009141]
[1723256786021,2.4342327,60752.0,60751.0,0.0019141]
[1723256786210,2.4542327,60752.0,60751.0,0.0029141]
[1723256786798,2.4642327,60752.0,60751.0,0.0029141]
[1723256787183,2.4552327,60752.0,60751.0,0.0019141]
[1723256787362,2.4442327,60752.0,60751.0,0.0009141]
[1723256787565,2.4672327,60752.0,60751.0,0.0029141]
[1723256788225,2.46692017,60752.0,60751.0,0.0029141]
[1723256789056,2.89591758,60752.0,60751.0,0.0029141]
[1723256789257,3.05761552,60752.0,60751.0,0.0019141]
[1723256789464,3.14446321,60752.0,60751.0,0.0029141]
[1723256789668,2.99082511,60752.0,60751.0,0.0029141]
[1723256790072,2.97782511,60752.0,60751.0,0.0019141]
[1723256790202,2.98982511,60752.0,60751.0,0.0029141]
[1723256790577,3.06357176,60752.0,60751.0,0.0029141]
[1723256790784,2.96982511,60752.0,60751.0,0.0029141]
[1723256790984,2.35552017,60752.0,60751.0,0.0029141]
[1723256791134,2.46792017,60752.0,60751.0,0.0029141]
[1723256791314,2.46114527,60752.0,60751.0,0.0029141]
[1723256791952,2.45114527,60752.0,60751.0,0.0029141]
[1723256792287,2.45293258,60752.0,60751.0,0.0029141]
[1723256792870,2.15371766,60752.0,60751.0,0.0029141]
[1723256793088,2.26611766,60752.0,60751.0,0.0029141]
[1723256793494,1.79611066,60752.0,60751.0,0.0029141]
[1723256793829,1.09257344,60752.0,60751.0,0.0796141]
[1723256794446,0.95586766,60752.0,60751.0,0.0796141]
[1723256795450,0.95586766,60752.0,60751.0,0.1400141]
[1723256795651,0.95766906,60752.0,60751.0,0.1400141]
[1723256796158,0.6289951,60752.0,60751.0,0.1400141]
[1723256796377,0.6169951,60752.0,60751.0,0.1390141]
[1723256796795,0.6219951,60752.0,60751.0,0.1390141]
[1723256797012,0.6099951,60752.0,60751.0,0.1380141]
[1723256797219,0.61039491,60752.0,60751.0,0.1380141]
[1723256797580,0.93460191,60752.0,60751.0,0.1380141]
[1723256797777,0.93960191,60752.0,60751.0,0.1380141]
[1723256798452,0.94460191,60752.0,60751.0,0.1380141]
[1723256799362,1.08128895,60752.0,60751.0,0.1380141]
[1723256799574,0.94460191,60752.0,60751.0,0.1380141]
[1723256802731,1.08128704,60752.0,60751.0,0.1380141]
[1723256802939,0.94747006,60752.0,60751.0,0.1380141]
[1723256803253,1.08415525,60752.0,60751.0,0.1380141]
[1723256803619,0.94747006,60752.0,60751.0,0.1380141]
[1723256803815,1.08415516,60752.0,60751.0,0.1380141]
[1723256804505,0.833848,60752.0,60751.0,0.1380141]
[1723256804638,1.08000458,60752.0,60751.0,0.1380141]
[1723256805237,0.94331702,60752.0,60751.0,0.1380141]
[1723256805716,1.08000222,60752.0,60751.0,0.1380141]
[1723256806428,1.08000222,60752.0,60751.0,0.0776141]
[1723256806629,1.40920922,60752.0,60751.0,0.0009141]
[1723256807235,1.40867966,60752.0,60751.0,0.0009141]
[1723256810297,1.88348908,60752.0,60751.0,0.0009141]
[1723256810503,2.14499774,60752.0,60751.0,0.0009141]
[1723256812353,2.16799774,60752.0,60751.0,0.0009141]
[1723256813778,2.16478311,60752.0,60751.0,0.0009141]
[1723256813977,2.32859803,60752.0,60751.0,0.0009141]
[1723256815344,2.40231147,60752.0,60751.0,0.0009141]
[1723256817084,1.99839036,60752.0,60751.0,0.0009141]
[1723256817279,2.32985567,60752.0,60751.0,0.0009141]
[1723256817745,2.42788316,60752.0,60751.0,0.0009141]
[1723256818750,2.02296151,60752.0,60751.0,0.0009141]
[1723256818928,2.43012247,60752.0,60751.0,0.0009141]
[1723256819232,2.48780922,60752.0,60751.0,0.0009141]
[1723256820733,2.48824751,60752.0,60751.0,0.0009141]
[1723256821551,2.60299026,60752.0,60751.0,0.0009141]
[1723256821756,2.50470739,60752.0,60751.0,0.0009141]
[1723256821976,2.08054885,60752.0,60751.0,0.0009141]
[1723256822150,2.13526125,60752.0,60751.0,0.0009141]
[1723256822454,1.80605425,60752.0,60751.0,0.0802141]
[1723256823146,1.8060491,60752.0,60751.0,0.0802141]
[1723256824270,1.8060491,60752.0,60751.0,0.1458141]
[1723256825211,1.8060491,60752.0,60751.0,0.0009141]
[1723256825407,1.8661491,60752.0,60751.0,0.0009141]
[1723256825660,1.7830491,60752.0,60751.0,0.0009141]
[1723256826124,1.77779419,60752.0,60751.0,0.0009141]
[1723256826568,1.78071027,60752.0,60751.0,0.0009141]
[1723256827142,1.78071082,60752.0,60751.0,0.0009141]
[1723256828979,1.85469104,60752.0,60751.0,0.0009141]
[1723256829151,1.78071082,60752.0,60751.0,0.0009141]
[1723256830164,1.78070568,60752.0,60751.0,0.0009141]
[1723256833783,0.970365,60741.0,60740.0,0.0009141]
[1723256833991,1.90482394,60741.0,60740.0,0.0009141]
[1723256834140,1.342102,60732.0,60730.0,0.0009141]
[1723256834338,1.90259645,60732.0,60731.0,0.00885097]
[1723256834546,1.90259645,60732.0,60731.0,0.0001]
[1723256835269,1.96030165,60732.0,60731.0,0.0001]
[1723256835450,1.90259645,60732.0,60731.0,0.0001]
[1723256835776,2.08190639,60732.0,60731.0,0.0001]
[1723256836054,2.24836584,60732.0,60731.0,0.0011]
[1723256836433,2.09196395,60732.0,60731.0,0.0011]
[1723256836629,2.10196395,60732.0,60731.0,0.0021]
[1723256836808,2.12496395,60732.0,60731.0,0.0021]
[1723256837186,1.72451194,60732.0,60731.0,0.0021]
[1723256837389,2.11049336,60732.0,60731.0,0.0021]
[1723256837790,2.11049074,60732.0,60731.0,0.0021]
[1723256838708,2.11049016,60732.0,60731.0,0.0021]
[1723256840107,2.43980516,60732.0,60731.0,0.0021]
[1723256840512,2.94293508,60732.0,60731.0,0.0021]
[1723256840711,1.511944,60731.0,60730.0,0.0009141]
[1723256840924,2.27682813,60731.0,60730.0,0.0009141]
[1723256841121,2.62518441,60731.0,60730.0,0.0009141]
[1723256841321,2.60053087,60731.0,60730.0,0.0009141]
[1723256841774,2.52671046,60731.0,60730.0,0.0009141]
[1723256842020,2.60518104,60731.0,60730.0,0.0009141]
[1723256842199,2.58053112,60731.0,60730.0,0.0009141]
[1723256842408,2.77693392,60731.0,60730.0,0.0009141]
[1723256842615,1.481989,60729.0,60713.0,0.0009141]
[1723256842913,2.21251231,60729.0,60713.0,0.0009141]
[1723256843683,2.15479846,60729.0,60713.0,0.0009141]
[1723256844113,0.164752,60697.0,60696.0,0.009152]
[1723256844321,0.63109304,60697.0,60696.0,0.009152]
[1723256844532,0.89439045,60697.0,60696.0,0.071152]
[1723256844747,0.89439045,60697.0,60696.0,0.08001524]
[1723256844950,0.89439045,60697.0,60696.0,0.071152]
[1723256845155,0.89439045,60697.0,60696.0,0.009152]
[1723256845356,1.24889545,60697.0,60696.0,0.009152]
[1723256845947,1.41271037,60697.0,60696.0,0.009152]
[1723256846425,1.41571037,60697.0,60696.0,0.009152]
[1723256846629,1.41371037,60697.0,60696.0,0.009152]
[1723256846847,1.41071037,60697.0,60696.0,0.009152]
[1723256847049,1.43071037,60697.0,60696.0,0.009152]
[1723256847454,1.41871037,60697.0,60696.0,0.009152]
[1723256847657,1.36008192,60697.0,60696.0,0.009152]
[1723256847881,1.42541516,60697.0,60696.0,0.009152]
[1723256848338,1.4254151,60697.0,60696.0,0.009152]
[1723256849401,1.36408192,60697.0,60696.0,0.009152]
[1723256850016,1.63368192,60697.0,60696.0,0.009152]
[1723256851192,1.62168192,60697.0,60696.0,0.009152]
[1723256851407,1.63368192,60697.0,60696.0,0.009152]
[1723256852041,1.64568192,60697.0,60696.0,0.009152]
[1723256852828,1.63368192,60697.0,60696.0,0.009152]
[1723256853033,1.64568192,60697.0,60696.0,0.009152]
[1723256853194,1.63368192,60697.0,60696.0,0.009152]
[1723256853397,1.64568192,60697.0,60696.0,0.009152]
[1723256853642,1.63368192,60697.0,60696.0,0.009152]
[1723256853936,1.469867,60697.0,60696.0,0.009152]
[1723256854113,1.481867,60697.0,60696.0,0.009152]
[1723256854463,1.457867,60697.0,60696.0,0.009152]
[1723256854671,1.446867,60697.0,60696.0,0.084852]
[1723256854871,0.835762,60697.0,60696.0,0.146852]
[1723256854995,0.847762,60697.0,60696.0,0.146852]
[1723256856089,0.835762,60697.0,60696.0,0.146852]
[1723256856244,0.823762,60697.0,60696.0,0.146852]
[1723256856647,0.847762,60697.0,60696.0,0.146852]
[1723256857086,0.835762,60697.0,60696.0,0.146852]
[1723256857286,0.823762,60697.0,60696.0,0.146852]
[1723256857609,0.847762,60697.0,60696.0,0.146852]
[1723256857781,0.835762,60697.0,60696.0,0.146852]
[1723256857982,0.823762,60697.0,60696.0,0.146852]
[1723256858182,0.834762,60697.0,60696.0,0.146852]
[1723256858885,0.505257,60697.0,60696.0,0.146852]
[1723256859253,0.516257,60697.0,60696.0,0.146852]
[1723256859905,0.505257,60697.0,60696.0,0.15607618]
[1723256860259,0.508257,60697.0,60696.0,0.146852]
[1723256860590,0.514257,60697.0,60696.0,0.146852]
[1723256861109,0.497257,60697.0,60696.0,0.146852]
[1723256861312,0.500257,60697.0,60696.0,0.146852]
[1723256864533,0.829762,60697.0,60696.0,0.146852]
[1723256866098,0.500257,60697.0,60696.0,0.146852]
[1723256867129,0.574564,60697.0,60696.0,0.146852]
[1723256867524,0.500257,60697.0,60696.0,0.146852]
[1723256868889,0.829762,60697.0,60696.0,0.146852]
[1723256869110,0.500257,60697.0,60696.0,0.146852]
[1723256869472,0.57550189,60697.0,60696.0,0.146852]
[1723256870308,0.25033395,60697.0,60696.0,0.146852]
[1723256870635,0.006,60697.0,60696.0,0.31066692]
[1723256871158,0.006,60697.0,60696.0,0.31984087]
[1723256871514,0.003,60697.0,60696.0,0.31984087]
[1723256871713,0.164751,60698.0,60696.0,0.18214087]
[1723256871899,0.164751,60698.0,60697.0,0.30391492]
[1723256872098,0.24687517,60698.0,60697.0,0.30391492]
[1723256872307,0.164751,60698.0,60697.0,0.30391492]
[1723256872505,0.24699108,60698.0,60697.0,0.31308887]
[1723256872975,0.08224008,60698.0,60697.0,0.31308887]
[1723256873128,0.08224008,60698.0,60697.0,0.17298887]
[1723256873546,0.08324008,60698.0,60697.0,0.17298887]
[1723256873750,0.08324008,60698.0,60697.0,0.31308887]
[1723256873958,0.08135247,60698.0,60697.0,0.31308887]
[1723256874161,0.08235247,60698.0,60697.0,0.31408887]
[1723256874362,0.001,60698.0,60697.0,0.31308887]
[1723256874562,0.08285417,60698.0,60697.0,0.31308887]
[1723256874766,0.08285417,60698.0,60697.0,0.31408887]
[1723256875205,0.08385417,60698.0,60697.0,0.31408887]
[1723256875421,0.002,60698.0,60697.0,0.31408887]
[1723256878442,0.002,60698.0,60697.0,0.47884087]
[1723256878993,0.002,60698.0,60697.0,0.31408887]
[1723256879302,0.16675,60698.0,60697.0,0.31408887]
[1723256880326,0.90801924,60698.0,60697.0,0.01017395]
[1723256880559,0.90801924,60698.0,60697.0,0.001]
[1723256880760,0.82575,60698.0,60697.0,0.001]
[1723256880913,0.90246359,60698.0,60697.0,0.001]
[1723256881343,0.90146359,60698.0,60697.0,0.001]
[1723256881558,0.823762,60697.0,60696.0,0.009152]
[1723256881804,0.90047559,60697.0,60696.0,0.009152]
[1723256882303,1.22998059,60697.0,60696.0,0.009152]
[1723256882515,1.36678691,60697.0,60696.0,0.009152]
[1723256883542,1.29008465,60697.0,60696.0,0.009152]
[1723256883781,1.50617144,60697.0,60696.0,0.009152]
[1723256884004,1.153267,60697.0,60696.0,0.009152]
[1723256884255,2.27074436,60697.0,60696.0,0.010152]
[1723256884473,2.27074436,60697.0,60696.0,0.009152]
[1723256884685,2.44991509,60697.0,60696.0,0.009152]
[1723256884887,2.49935398,60697.0,60696.0,0.009152]
[1723256884997,2.45107689,60697.0,60696.0,0.009152]
[1723256885212,2.50035779,60697.0,60696.0,0.009152]
[1723256885410,2.52399489,60697.0,60696.0,0.009152]
[1723256885650,2.44908081,60697.0,60696.0,0.009152]
[1723256885850,2.53699489,60697.0,60696.0,0.009152]
[1723256886007,2.55899489,60697.0,60696.0,0.009152]
[1723256886238,2.52036629,60697.0,60696.0,0.009152]
[1723256886444,2.58891081,60697.0,60696.0,0.009152]
[1723256887108,2.49673364,60697.0,60696.0,0.009152]
[1723256887312,2.40033654,60697.0,60696.0,0.009152]
[1723256887513,2.39516238,60697.0,60696.0,0.009152]
[1723256887917,2.08869162,60697.0,60696.0,0.009152]
[1723256888072,2.10269162,60697.0,60696.0,0.009152]
[1723256888278,2.16499518,60697.0,60696.0,0.009152]
[1723256888745,2.15199518,60697.0,60696.0,0.009152]
[1723256889099,2.16500359,60697.0,60696.0,0.009152]
[1723256889304,2.11569162,60697.0,60696.0,0.009152]
[1723256889944,2.18965958,60697.0,60696.0,0.009152]
[1723256890172,2.11569162,60697.0,60696.0,0.009152]
[1723256890554,2.11801705,60697.0,60696.0,0.009152]
[1723256891150,2.16733953,60697.0,60696.0,0.009152]
[1723256891779,2.01833953,60697.0,60696.0,0.009152]
[1723256891968,1.61651205,60697.0,60696.0,0.009152]
[1723256892464,1.47624165,60697.0,60696.0,0.009152]
[1723256893621,1.37624165,60697.0,60696.0,0.009152]
[1723256893900,0.58040145,60697.0,60696.0,0.074752]
[1723256894104,0.521257,60697.0,60696.0,0.151252]
[1723256894583,0.521257,60697.0,60696.0,0.160506]
[1723256894755,0.508257,60697.0,60696.0,0.151252]
[1723256894959,0.494257,60697.0,60696.0,0.160506]
[1723256895158,0.89338958,60697.0,60696.0,0.151252]
[1723256895797,0.90038958,60697.0,60696.0,0.151252]
[1723256896107,0.9040013,60697.0,60696.0,0.151252]
[1723256897742,0.90433324,60697.0,60696.0,0.151252]
[1723256901351,0.9040676,60697.0,60696.0,0.151252]
[1723256904847,0.90262767,60697.0,60696.0,0.151252]
[1723256905395,0.90252818,60697.0,60696.0,0.151252]
[1723256908434,0.836762,60697.0,60696.0,0.151252]
[1723256908620,0.9018526,60697.0,60696.0,0.151252]
[1723256912152,0.90103785,60697.0,60696.0,0.151252]
[1723256914102,0.90103785,60697.0,60696.0,0.126252]
[1723256914747,0.23602785,60697.0,60696.0,0.126252]
[1723256914964,0.06427585,60697.0,60696.0,0.126252]
[1723256915168,0.06427585,60697.0,60696.0,0.13542054]
[1723256915371,0.22902785,60697.0,60696.0,0.05892054]
[1723256915574,0.164752,60697.0,60696.0,0.14062054]
[1723256915777,0.22369125,60697.0,60696.0,0.14062054]
[1723256916352,0.22468951,60697.0,60696.0,0.14262054]
[1723256916972,0.55519451,60697.0,60696.0,0.14262054]
[1723256919146,0.22568951,60697.0,60696.0,0.14262054]
[1723256919500,0.23371859,60697.0,60696.0,0.14262054]
[1723256922474,0.23371859,60697.0,60696.0,0.14353464]
[1723256923063,0.23390363,60697.0,60696.0,0.14353464]
[1723256925867,0.06915163,60697.0,60696.0,0.14353464]
[1723256926226,0.23390363,60697.0,60696.0,0.14353464]
[1723256926660,0.166752,60697.0,60696.0,0.14353464]
[1723256926885,0.23573568,60697.0,60696.0,0.14353464]
[1723256927170,0.23609388,60697.0,60696.0,0.14353464]
[1723256928163,0.166752,60697.0,60696.0,0.14353464]
[1723256928337,0.23711852,60697.0,60696.0,0.14353464]
[1723256929539,0.166752,60697.0,60696.0,0.14353464]
[1723256930722,0.496257,60697.0,60696.0,0.14353464]
[1723256930855,0.56813301,60697.0,60696.0,0.14353464]
[1723256931061,0.496257,60697.0,60696.0,0.14353464]
[1723256932071,0.57053627,60697.0,60696.0,0.14353464]
[1723256932785,0.496257,60697.0,60696.0,0.14353464]
[1723256934325,0.56620247,60697.0,60696.0,0.14353464]
[1723256934887,0.56621254,60697.0,60696.0,0.14353464]
[1723256935114,0.56704354,60697.0,60696.0,0.14353464]
[1723256936231,0.89654854,60697.0,60696.0,0.0029141]
[1723256937773,0.826593,60697.0,60696.0,0.0029141]
[1723256937938,1.03494456,60697.0,60696.0,0.0029141]
[1723256938543,0.56863744,60697.0,60696.0,0.0029141]
[1723256938846,0.89814244,60697.0,60696.0,0.0029141]
[1723256939046,1.03494212,60697.0,60696.0,0.0029141]
[1723256940299,1.14764212,60697.0,60696.0,0.0029141]
[1723256941084,1.29098829,60697.0,60696.0,0.0029141]
[1723256941281,1.14764212,60697.0,60696.0,0.0029141]
[1723256941486,1.14182723,60697.0,60696.0,0.0029141]
[1723256941720,1.80819966,60697.0,60696.0,0.0029141]
[1723256942261,1.75879041,60697.0,60696.0,0.0029141]
[1723256942618,1.85564668,60697.0,60696.0,0.0029141]
[1723256943046,1.75678946,60697.0,60696.0,0.0029141]
[1723256943249,1.85564668,60697.0,60696.0,0.0029141]
[1723256943449,1.83093013,60697.0,60696.0,0.0029141]
[1723256943650,1.75678946,60697.0,60696.0,0.0029141]
[1723256944015,1.83134388,60697.0,60696.0,0.0029141]
[1723256944470,1.7572101,60697.0,60696.0,0.0029141]
[1723256944646,1.83133565,60697.0,60696.0,0.0029141]
[1723256945593,1.85433565,60697.0,60696.0,0.0029141]
[1723256946033,1.7802101,60697.0,60696.0,0.0029141]
[1723256946358,1.7792101,60697.0,60696.0,0.0009141]
[1723256946784,1.7782101,60697.0,60696.0,0.0039141]
[1723256947164,1.85232213,60697.0,60696.0,0.0009141]
[1723256947342,1.85605872,60697.0,60696.0,0.0009141]
[1723256947496,1.85605114,60697.0,60696.0,0.0009141]
[1723256947908,1.88077446,60697.0,60696.0,0.0009141]
[1723256949381,1.88077446,60697.0,60696.0,0.0019141]
[1723256949587,1.76807446,60697.0,60696.0,0.0019141]
[1723256949793,1.88077446,60697.0,60696.0,0.0009141]
[1723256950394,1.49351908,60697.0,60696.0,0.0009141]
[1723256950915,1.68666627,60697.0,60696.0,0.0009141]
[1723256951341,1.54984337,60697.0,60696.0,0.0009141]
[1723256951500,1.68574654,60697.0,60696.0,0.0009141]
[1723256951652,1.49290311,60697.0,60696.0,0.0009141]
[1723256951853,1.68576044,60697.0,60696.0,0.0009141]
[1723256952293,1.46990311,60697.0,60696.0,0.0009141]
[1723256953994,1.47290311,60697.0,60696.0,0.0009141]
[1723256954231,1.47590311,60697.0,60696.0,0.0009141]
[1723256954378,1.272798,60697.0,60696.0,0.0009141]
[1723256954575,1.47375881,60697.0,60696.0,0.0009141]
[1723256954784,1.47675881,60697.0,60696.0,0.0009141]
[1723256958289,1.47675933,60697.0,60696.0,0.0009141]
[1723256961979,1.47527678,60697.0,60696.0,0.0009141]
[1723256962180,1.6184512,60697.0,60696.0,0.0009141]
[1723256962402,1.616886,60697.0,60696.0,0.0009141]
[1723256962732,1.66625348,60697.0,60696.0,0.0009141]
[1723256963975,1.66461147,60697.0,60696.0,0.0009141]
[1723256965398,1.66357677,60697.0,60696.0,0.0009141]
[1723256967749,1.61421443,60697.0,60696.0,0.0009141]
[1723256968162,1.66357677,60697.0,60696.0,0.0009141]
[1723256968366,1.61421443,60697.0,60696.0,0.0009141]
[1723256968842,1.272798,60697.0,60696.0,0.0009141]
[1723256969151,1.61416245,60697.0,60696.0,0.0009141]
[1723256969687,1.50146245,60697.0,60696.0,0.0009141]
[1723256971464,1.17195745,60697.0,60696.0,0.0009141]
[1723256972261,1.16824691,60697.0,60696.0,0.0009141]
[1723256972464,1.16224691,60697.0,60696.0,0.0009141]
[1723256972670,1.16497805,60697.0,60696.0,0.0009141]
[1723256973129,1.60718305,60697.0,60696.0,0.0009141]
[1723256973326,1.27767805,60697.0,60696.0,0.0009141]
[1723256973524,1.60718305,60697.0,60696.0,0.0009141]
[1723256973860,1.27767805,60697.0,60696.0,0.0009141]
[1723256974635,1.60718305,60697.0,60696.0,0.0009141]
[1723256975733,1.61844859,60697.0,60696.0,0.0009141]
[1723256976152,1.17624359,60697.0,60696.0,0.0009141]
[1723256976375,1.28894359,60697.0,60696.0,0.0009141]
[1723256976574,1.61844859,60697.0,60696.0,0.0009141]
[1723256976701,1.28894359,60697.0,60696.0,0.0009141]
[1723256977112,1.61844859,60697.0,60696.0,0.0009141]
[1723256977767,1.28894359,60697.0,60696.0,0.0009141]
[1723256978163,1.61844859,60697.0,60696.0,0.0009141]
[1723256979201,1.28339874,60697.0,60696.0,0.0009141]
[1723256980176,1.61290374,60697.0,60696.0,0.0009141]
[1723256980814,1.7116281,60697.0,60696.0,0.0009141]
[1723256981022,1.8116281,60697.0,60696.0,0.0009141]
[1723256981335,1.77060244,60697.0,60696.0,0.0009141]
[1723256981516,1.91468348,60697.0,60696.0,0.0009141]
[1723256981859,2.24418848,60697.0,60696.0,0.0009141]
[1723256982467,1.93159446,60697.0,60696.0,0.0009141]
[1723256982642,2.25277055,60697.0,60696.0,0.0009141]
[1723256982851,2.25177055,60697.0,60696.0,0.0009141]
[1723256983169,2.25580332,60697.0,60696.0,0.0009141]
[1723256983313,2.24980332,60697.0,60696.0,0.0009141]
[1723256983691,2.26280332,60697.0,60696.0,0.0009141]
[1723256984183,2.26282508,60697.0,60696.0,0.0009141]
[1723256986134,2.25878337,60697.0,60696.0,0.0009141]